bitfinex/quotes_SOLUSD_20220114
["timestamp","ask_amount","ask_price","bid_price","bid_amount"]
[1642159573613,33.4827,142.93,142.86,24.63883535]
[1642159573809,10.497,142.93,142.86,24.63883535]
[1642159574011,10.497,142.93,142.86,24.89883535]
[1642159574312,0.25,142.93,142.86,94.73883535]
[1642159574513,48.3888,142.95,142.86,94.98883535]
[1642159574514,2.799,142.95,142.86,94.98883535]
[1642159574812,2.799,142.97,142.87,2.799]
[1642159575012,3.19044311,142.99,142.87,3.309]
[1642159576037,3.45044311,142.99,142.87,3.309]
[1642159576340,51.1212,143.01,142.87,3.309]
[1642159576541,10.4922,142.99,142.91,10.492]
[1642159576940,10.7422,142.99,142.89,32.22746257]
[1642159577143,11.208,142.98,142.89,32.22746257]
[1642159577542,10.4939,142.97,142.89,32.22746257]
[1642159577940,10.7439,142.97,142.89,2.798]
[1642159578140,11.208,142.96,142.89,2.798]
[1642159578544,11.458,142.96,142.79,4.01572527]
[1642159578741,10.498,142.93,142.83,10.4982]
[1642159578943,2.799,142.92,142.84,26.58768656]
[1642159579349,3.049,142.92,142.84,26.83768656]
[1642159579743,0.25,142.92,142.84,26.58768656]
[1642159579942,10.7474,142.92,142.84,37.08528656]
[1642159580545,10.7474,142.92,142.84,37.34528656]
[1642159580843,2.799,142.94,142.84,107.18528656]
[1642159581043,0.25,142.94,142.85,2.799]
[1642159581244,0.25,142.94,142.87,38.57850255]
[1642159582044,0.25,142.94,142.87,39.08850255]
[1642159582243,10.7452,142.95,142.87,38.83850255]
[1642159582445,11.209,142.96,142.87,46.71350255]
[1642159582643,2.799,142.96,142.88,69.84]
[1642159582845,34.75014311,142.99,142.91,38.71387007]
[1642159583042,11.60044311,142.99,142.91,47.34587007]
[1642159583246,11.60044311,142.99,142.91,47.59587007]
[1642159583744,22.09294311,142.99,142.91,47.59587007]
[1642159584346,18.9025,142.99,142.91,47.59587007]
[1642159584949,18.9025,142.99,142.91,47.34587007]
[1642159585347,8.41,142.99,142.91,47.34587007]
[1642159585546,2.798,143.0,142.91,47.59587007]
[1642159585547,13.2894,143.0,142.91,47.59587007]
[1642159585746,10.4914,143.0,142.91,47.59587007]
[1642159586145,2.798,143.01,142.93,10.4911]
[1642159586345,3.048,143.01,142.94,69.84]
[1642159586548,13.2868,143.03,142.95,25.42122101]
[1642159586745,10.4898,143.03,142.95,25.68122101]
[1642159586946,0.25,143.03,142.95,25.93122101]
[1642159588047,10.4885,143.04,142.95,36.42062101]
[1642159588252,10.4885,143.04,142.96,69.84]
[1642159588546,23.8362,143.05,142.96,70.35]
[1642159588747,23.8362,143.05,142.96,76.35]
[1642159589150,8.41,143.06,142.96,76.35]
[1642159589347,10.4878,143.05,142.98,69.84]
[1642159589547,8.41,143.06,142.98,70.1]
[1642159589948,8.41,143.06,142.98,96.63389147]
[1642159590350,3.19044311,143.04,142.98,96.63389147]
[1642159590549,3.44044311,143.04,142.98,107.12109147]
[1642159590747,3.44044311,143.04,142.98,80.5872]
[1642159591950,7.24491881,143.04,142.98,80.5872]
[1642159592353,7.24491881,143.04,142.98,10.4872]
[1642159592554,7.24491881,143.04,142.97,10.4884]
[1642159593352,7.24491881,143.04,142.97,10.7384]
[1642159593751,3.19044311,143.03,142.97,80.8384]
[1642159594652,3.19044311,143.03,142.97,86.8384]
[1642159595856,3.19044311,143.03,142.98,2.797]
[1642159596058,3.19044311,143.03,142.99,38.67418712]
[1642159596457,3.95770124,143.04,143.0,75.0]
[1642159596656,3.95770124,143.04,143.01,2.795]
[1642159596959,3.95770124,143.04,143.0,2.795]
[1642159597259,3.95770124,143.04,142.95,2.795]
[1642159597456,9.22009863,143.06,142.95,8.795]
[1642159597656,2.797,143.05,142.95,2.795]
[1642159597856,10.4872,143.06,142.95,2.795]
[1642159597857,10.7372,143.06,142.95,2.795]
[1642159598057,10.7372,143.06,142.95,8.795]
[1642159598259,10.7372,143.06,142.96,27.36378376]
[1642159598458,10.9972,143.06,142.96,33.87378376]
[1642159598657,10.9972,143.06,142.97,10.4879]
[1642159598859,3.8044757,143.05,142.97,10.4879]
[1642159599157,14.5422757,143.05,142.97,10.7379]
[1642159599357,14.5422757,143.05,142.96,33.36378376]
[1642159599561,17.3392757,143.05,142.96,27.36378376]
[1642159600157,17.5992757,143.05,142.96,27.36378376]
[1642159600558,17.5992757,143.05,142.96,27.61378376]
[1642159600758,17.3392757,143.05,142.96,27.36378376]
[1642159600961,3.93744908,143.04,142.97,75.0]
[1642159601159,3.93744908,143.04,142.97,75.25]
[1642159601360,3.93744908,143.04,142.97,75.51]
[1642159601759,3.93744908,143.04,142.97,81.51]
[1642159602161,3.93744908,143.07,142.97,81.51]
[1642159602361,3.93744908,143.07,142.99,31.08355173]
[1642159602559,3.93744908,143.07,142.99,45.21155173]
[1642159603260,3.93744908,143.09,143.0,69.84]
[1642159603460,3.93744908,143.09,142.99,31.33355173]
[1642159603660,17.21764908,143.09,143.01,10.4852]
[1642159603861,17.21764908,143.09,142.99,31.33355173]
[1642159604060,17.21764908,143.09,143.02,24.4648606]
[1642159604259,25.62764908,143.09,143.02,24.4648606]
[1642159604460,25.62764908,143.09,142.99,0.26]
[1642159604662,25.62764908,143.09,142.98,0.51]
[1642159604859,3.93744908,143.08,142.98,0.51]
[1642159605060,3.93744908,143.08,142.98,0.25]
[1642159605260,10.4874,143.06,142.99,10.4873]
[1642159605465,10.4874,143.06,142.99,40.31638215]
[1642159605662,10.4874,143.06,142.99,29.56908215]
[1642159606663,3.93744908,143.05,142.96,52.111]
[1642159606861,14.42554908,143.05,142.97,10.4881]
[1642159607062,14.68554908,143.05,142.97,10.4881]
[1642159607265,14.68554908,143.05,142.97,10.7481]
[1642159607465,14.68554908,143.05,142.97,10.9981]
[1642159607662,14.93554908,143.05,142.97,36.64237013]
[1642159608063,14.67554908,143.05,142.97,26.15427013]
[1642159608462,6.73444908,143.04,142.96,10.4894]
[1642159608662,10.49,143.02,142.96,10.4894]
[1642159609068,6.73444908,143.04,142.96,10.7394]
[1642159609265,3.93744908,143.04,142.97,69.84]
[1642159609463,10.07,143.08,142.99,10.4868]
[1642159609662,2.795,143.07,142.99,10.4868]
[1642159609868,10.4863,143.07,142.99,10.4868]
[1642159610065,10.4863,143.07,142.99,10.7368]
[1642159610267,10.4863,143.07,142.99,10.9968]
[1642159610567,14.75275433,143.07,142.99,10.9968]
[1642159610765,17.54775433,143.07,142.99,10.7468]
[1642159611366,4.00645433,143.06,142.99,10.7468]
[1642159611567,14.49345433,143.06,142.99,10.4868]
[1642159611766,14.49345433,143.06,142.97,92.92567903]
[1642159611969,14.49345433,143.06,142.98,10.488]
[1642159612370,4.00645433,143.05,142.98,10.738]
[1642159612968,4.00645433,143.05,142.98,10.998]
[1642159613469,14.49465433,143.05,142.98,10.998]
[1642159613769,4.00645433,143.05,142.98,10.738]
[1642159613969,4.00645433,143.06,142.98,10.998]
[1642159614367,4.26645433,143.06,142.98,10.738]
[1642159614568,10.4877,143.05,142.97,10.4886]
[1642159614769,13.2847,143.05,142.94,48.579]
[1642159614973,10.07,143.04,142.94,2.797]
[1642159615169,2.797,143.03,142.92,2.797]
[1642159615368,12.867,143.03,142.91,0.25]
[1642159615767,16.87345433,143.03,142.9,26.93779289]
[1642159615967,10.491,143.01,142.92,10.4922]
[1642159616594,10.491,143.01,142.92,10.7522]
[1642159617096,10.491,143.01,142.92,11.0022]
[1642159617995,10.751,143.01,142.92,11.0022]
[1642159619100,10.751,143.01,142.92,80.8422]
[1642159619798,4.00766555,143.0,142.92,80.8422]
[1642159619999,4.00766555,143.0,142.92,86.8422]
[1642159620196,4.00766555,143.0,142.93,25.77039292]
[1642159620396,4.00766555,143.0,142.95,10.49]
[1642159621397,4.00766555,143.01,142.93,2.797]
[1642159621597,0.26,143.0,142.92,0.25]
[1642159621797,4.00766555,143.01,142.92,0.25]
[1642159621998,4.26766555,143.01,142.91,76.09]
[1642159622196,0.26,143.01,142.91,76.09]
[1642159622396,0.26,143.01,142.92,10.4922]
[1642159622604,2.797,143.02,142.92,10.7422]
[1642159622798,3.057,143.02,142.93,27.60290235]
[1642159622997,3.057,143.02,142.93,27.85290235]
[1642159622998,10.4908,143.01,142.93,27.85290235]
[1642159623397,10.7408,143.01,142.93,28.11290235]
[1642159623597,4.00766858,143.0,142.93,108.44370235]
[1642159623998,4.00766858,143.0,142.93,114.44370235]
[1642159624207,4.00766858,143.0,142.93,108.44370235]
[1642159624410,4.00766858,143.0,142.93,114.44370235]
[1642159625012,93.8219,143.05,142.93,114.44370235]
[1642159625714,4.00717584,143.04,142.93,114.44370235]
[1642159625913,4.00717584,143.04,142.96,80.3288]
[1642159626212,4.00717584,143.04,142.96,118.67367624]
[1642159626411,4.00717584,143.04,142.96,119.18367624]
[1642159627112,14.49567584,143.04,142.96,119.18367624]
[1642159627513,14.75567584,143.04,142.96,119.18367624]
[1642159627746,15.00567584,143.04,142.96,119.18367624]
[1642159627912,4.00717584,143.03,142.96,119.18367624]
[1642159629618,4.00717584,143.03,142.96,125.18367624]
[1642159630119,4.00717584,143.03,143.01,26.64344095]
[1642159630323,4.00717584,143.03,143.01,96.48344095]
[1642159630521,22.7042,143.1,143.01,96.99344095]
[1642159630722,2.795,143.11,143.01,96.99344095]
[1642159631223,10.4842,143.1,143.02,10.4843]
[1642159631525,10.4842,143.1,143.02,10.9943]
[1642159631721,14.49011681,143.1,143.02,10.9943]
[1642159632324,14.49011681,143.1,143.02,10.7443]
[1642159632523,14.49011681,143.1,143.02,10.9943]
[1642159632725,14.75011681,143.1,143.02,10.9943]
[1642159633125,4.00591681,143.09,143.02,10.9943]
[1642159636362,4.00591681,143.09,143.03,2.795]
[1642159636660,4.00591681,143.09,143.04,27.02028937]
[1642159636860,4.00591681,143.09,143.06,10.4802]
[1642159637162,4.00591681,143.09,143.07,24.4701528]
[1642159637559,4.00591681,143.09,143.07,24.9801528]
[1642159637760,4.00591681,143.14,143.08,69.84]
[1642159637964,4.00591681,143.14,143.08,86.8302]
[1642159638561,4.00591681,143.16,143.08,86.8302]
[1642159641164,4.00591681,143.19,143.08,86.8302]
[1642159641362,4.00591681,143.19,143.09,2.794]
[1642159641562,14.48331681,143.19,143.13,10.4769]
[1642159641964,4.00591681,143.19,143.13,38.88247748]
[1642159642164,4.00591681,143.19,143.13,46.13247748]
[1642159642364,4.00591681,143.19,143.13,46.39247748]
[1642159642565,4.00591681,143.19,143.16,10.4743]
[1642159642765,3.03219997,143.18,143.16,19.3213]
[1642159642967,4.00591681,143.19,143.16,19.5713]
[1642159643566,22.48843531,143.24,143.16,19.5713]
[1642159643766,12.01443531,143.24,143.16,19.8313]
[1642159644968,8.0085185,143.24,143.17,69.84]
[1642159645166,4.00591681,143.25,143.21,10.4708]
[1642159645468,4.00591681,143.25,143.21,10.9808]
[1642159646269,4.00591681,143.29,143.21,10.9808]
[1642159646498,2.791,143.28,143.21,10.9808]
[1642159647470,3.041,143.28,143.21,10.9808]
[1642159647870,4.00591681,143.27,143.21,10.9808]
[1642159648671,4.00591681,143.29,143.22,69.84]
[1642159648871,4.00591681,143.29,143.24,10.4682]
[1642159649070,4.00591681,143.29,143.25,25.28602876]
[1642159649274,0.00591681,143.29,143.25,32.33002876]
[1642159649471,0.00591681,143.29,143.26,69.84]
[1642159649671,8.0085185,143.31,143.26,69.84]
[1642159649870,8.0085185,143.31,143.26,70.1]
[1642159650071,8.0085185,143.31,143.26,70.35]
[1642159650272,8.0085185,143.31,143.26,76.35]
[1642159650472,8.0085185,143.31,143.27,10.4652]
[1642159650875,8.0085185,143.31,143.27,80.8152]
[1642159651074,8.0085185,143.31,143.27,86.8152]
[1642159651475,10.01479201,143.34,143.27,86.8152]
[1642159651476,10.4658,143.36,143.27,86.8152]
[1642159651674,10.4658,143.36,143.27,80.8152]
[1642159652975,10.4658,143.36,143.27,10.7152]
[1642159653177,13.2576,143.35,143.27,10.7152]
[1642159653378,10.4666,143.35,143.27,10.7152]
[1642159653576,10.4666,143.35,143.26,10.4672]
[1642159653777,2.791,143.34,143.26,10.4672]
[1642159654009,2.791,143.37,143.26,10.4672]
[1642159654582,10.4677,143.33,143.26,10.4672]
[1642159655080,10.4677,143.33,143.23,2.791]
[1642159655288,2.791,143.32,143.2,25.622]
[1642159655480,25.4213,143.35,143.2,28.831]
[1642159655685,35.4913,143.35,143.2,28.831]
[1642159655880,37.70207588,143.35,143.21,25.67950669]
[1642159656079,37.70207588,143.35,143.22,80.3094]
[1642159656080,10.4689,143.32,143.22,80.3094]
[1642159656481,10.4689,143.32,143.22,90.8894]
[1642159656881,2.791,143.33,143.22,90.8894]
[1642159657181,13.2585,143.34,143.25,10.4673]
[1642159657382,8.0085185,143.33,143.25,10.4673]
[1642159657584,8.0085185,143.33,143.25,10.9773]
[1642159658283,2.791,143.34,143.23,26.4053]
[1642159658482,10.4676,143.33,143.23,13.111]
[1642159658682,2.791,143.32,143.23,13.111]
[1642159658885,2.791,143.34,143.23,13.111]
[1642159659483,37.6906,143.34,143.23,13.111]
[1642159660284,37.6906,143.34,143.23,10.32]
[1642159660485,10.4688,143.32,143.23,21.0492]
[1642159661389,10.7288,143.32,143.23,21.0492]
[1642159661691,6.00065886,143.3,143.23,21.0492]
[1642159665292,6.00065886,143.3,143.24,69.84]
[1642159665494,6.00065886,143.3,143.27,10.4664]
[1642159665897,6.00065886,143.3,143.27,31.23675764]
[1642159666693,6.00065886,143.31,143.27,31.23675764]
[1642159667300,6.00065886,143.31,143.24,9.148]
[1642159667498,6.00065886,143.31,143.24,3.301]
[1642159668004,6.00065886,143.31,143.24,3.041]
[1642159668401,6.00065886,143.31,143.25,33.25863858]
[1642159668800,6.00065886,143.31,143.25,33.50863858]
[1642159669029,6.00065886,143.31,143.24,2.791]
[1642159669228,2.791,143.3,143.24,2.791]
[1642159669631,2.791,143.3,143.23,10.4679]
[1642159670234,6.00065886,143.31,143.23,10.4679]
[1642159670432,0.25,143.3,143.23,10.4679]
[1642159670635,6.25065886,143.31,143.23,10.7179]
[1642159670833,6.25065886,143.31,143.23,10.4679]
[1642159671436,6.25065886,143.31,143.23,10.7279]
[1642159671437,6.00065886,143.3,143.23,10.7279]
[1642159671635,6.00065886,143.3,143.23,10.9779]
[1642159671835,6.00065886,143.3,143.23,80.8179]
[1642159672036,6.00065886,143.3,143.23,86.8179]
[1642159672638,6.00065886,143.3,143.24,10.07]
[1642159672849,0.00065886,143.3,143.25,72.631]
[1642159673047,0.00065886,143.3,143.27,10.4631]
[1642159673246,8.0085185,143.34,143.28,2.791]
[1642159673446,8.0085185,143.34,143.29,27.07106877]
[1642159673649,8.0085185,143.34,143.29,96.91106877]
[1642159673847,8.0085185,143.34,143.29,97.42106877]
[1642159674646,8.0085185,143.38,143.3,10.463]
[1642159674848,8.0085185,143.38,143.3,15.932]
[1642159675048,8.2685185,143.38,143.3,16.442]
[1642159675247,8.0085185,143.38,143.3,16.442]
[1642159675847,8.0085185,143.38,143.3,19.232]
[1642159676448,8.2685185,143.38,143.3,19.232]
[1642159676648,0.26,143.38,143.3,19.232]
[1642159676849,0.26,143.38,143.3,99.142]
[1642159677048,10.7225,143.4,143.3,99.142]
[1642159678554,10.7225,143.4,143.3,18.329]
[1642159678758,2.79,143.39,143.3,2.79]
[1642159678953,10.467,143.35,143.3,2.79]
[1642159679151,2.79,143.34,143.3,2.79]
[1642159679352,2.79,143.37,143.3,2.79]
[1642159679851,10.4661,143.35,143.3,2.79]
[1642159680961,2.79,143.34,143.3,2.79]
[1642159681157,10.4692,143.32,143.23,10.07]
[1642159681560,2.791,143.31,143.23,16.07]
[1642159682060,2.791,143.32,143.24,31.32560656]
[1642159682661,1.99995454,143.25,143.24,31.32560656]
[1642159683065,1.99995454,143.25,143.23,6.0]
[1642159683364,1.99995454,143.25,143.23,0.25]
[1642159683565,1.99995454,143.25,143.21,19.371]
[1642159684065,1.99995454,143.25,143.21,13.111]
[1642159684863,1.99995454,143.25,143.21,10.32]
[1642159685264,1.99995454,143.24,143.21,10.32]
[1642159686065,6.06324725,143.23,143.17,12.861]
[1642159686264,6.06324725,143.23,143.14,4.5410225]
[1642159686464,6.06324725,143.23,143.14,1.7480225]
[1642159686465,8.85624725,143.23,143.14,1.7480225]
[1642159687068,1.99995454,143.2,143.13,40.76062388]
[1642159687267,1.99995454,143.2,143.13,37.96762388]
[1642159687467,1.99995454,143.2,143.13,44.21762388]
[1642159688286,6.79450034,143.23,143.13,44.21762388]
[1642159688287,1.99995454,143.19,143.13,44.21762388]
[1642159688697,1.99995454,143.19,143.13,16.32]
[1642159688899,1.99995454,143.19,143.13,16.07]
[1642159689093,1.99995454,143.18,143.13,16.07]
[1642159689896,2.25995454,143.18,143.13,16.07]
[1642159690095,2.25995454,143.18,143.13,16.32]
[1642159690493,2.25995454,143.18,143.13,10.32]
[1642159690696,2.25995454,143.18,143.11,2.793]
[1642159690896,2.25995454,143.18,143.08,2.794]
[1642159691096,4.49477588,143.17,143.07,1.7480225]
[1642159691296,10.07,143.16,143.07,1.7480225]
[1642159691495,2.794,143.15,143.07,1.7480225]
[1642159691695,10.4837,143.12,143.04,29.57921822]
[1642159692596,4.79495454,143.13,143.04,29.57921822]
[1642159692597,1.99995454,143.11,143.04,29.57921822]
[1642159692800,1.99995454,143.11,143.05,2.795]
[1642159693197,1.99995454,143.11,143.05,3.045]
[1642159693600,1.99995454,143.12,143.05,13.125]
[1642159693800,1.99995454,143.12,143.05,19.125]
[1642159694505,1.99995454,143.13,143.05,29.6066]
[1642159695003,1.99995454,143.13,143.05,29.8566]
[1642159695406,1.99995454,143.14,143.05,23.8566]
[1642159695605,1.99995454,143.14,143.05,29.8566]
[1642159695805,2.24995454,143.14,143.05,29.8566]
[1642159696006,2.25995454,143.14,143.05,23.3466]
[1642159696205,12.74125454,143.14,143.05,12.865]
[1642159696405,1.99995454,143.13,143.05,12.865]
[1642159697209,1.99995454,143.11,143.05,12.865]
[1642159697406,1.99995454,143.11,143.05,10.07]
[1642159697609,10.4843,143.1,143.05,10.07]
[1642159701319,10.7443,143.1,143.05,10.07]
[1642159701818,1.99995454,143.11,143.06,2.795]
[1642159702021,1.99995454,143.11,143.06,3.305]
[1642159702919,1.99995454,143.11,143.06,13.5264]
[1642159703119,1.99995454,143.11,143.05,10.07]
[1642159703319,2.795,143.13,143.05,10.07]
[1642159703519,2.795,143.13,143.05,10.32]
[1642159704420,10.4835,143.11,143.05,10.32]
[1642159705523,12.48275454,143.12,143.05,10.32]
[1642159705921,12.48275454,143.12,143.05,0.25]
[1642159706123,15.27775454,143.12,143.02,27.9439225]
[1642159706323,15.27775454,143.12,143.03,0.25]
[1642159706947,1.99995454,143.1,143.03,0.25]
[1642159707149,1.99995454,143.1,143.01,27.9218225]
[1642159707150,10.4853,143.09,143.01,27.9218225]
[1642159707347,13.2803,143.09,143.01,25.1268225]
[1642159707554,13.2803,143.09,143.01,1.7480225]
[1642159708049,69.84,143.08,143.0,1.7480225]
[1642159708248,10.4898,143.04,143.0,1.7480225]
[1642159708649,10.7498,143.04,143.0,1.7480225]
[1642159708849,10.7498,143.04,142.96,1.7480225]
[1642159709048,13.5468,143.04,142.96,1.7480225]
[1642159709248,13.5468,143.04,142.96,1.9980225]
[1642159710053,10.7498,143.04,142.96,1.9980225]
[1642159710654,13.5468,143.04,142.96,1.7480225]
[1642159710854,23.6168,143.04,142.97,1.7480225]
[1642159711059,10.4939,143.0,142.97,1.7480225]
[1642159711260,8.86024725,142.99,142.94,3.51226655]
[1642159711458,3.03104728,142.99,142.94,3.51226655]
[1642159711658,5.82804728,142.99,142.94,3.51226655]
[1642159711856,5.82804728,142.99,142.93,2.795]
[1642159712057,3.03104728,142.99,142.91,3.51226655]
[1642159712258,3.29104728,142.99,142.91,3.51226655]
[1642159712656,10.4946,142.98,142.91,3.51226655]
[1642159713055,10.4946,142.98,142.89,6.30926655]
[1642159713256,3.058,142.99,142.89,6.30926655]
[1642159713457,0.26,142.99,142.89,6.55926655]
[1642159713657,2.798,143.01,142.89,16.62926655]
[1642159713857,2.798,143.03,142.89,22.62926655]
[1642159714056,10.4923,142.99,142.89,27.12256655]
[1642159714262,10.4923,142.99,142.9,3.51226655]
[1642159714457,10.4923,142.99,142.9,3.76226655]
[1642159714862,2.798,143.01,142.9,4.02226655]
[1642159715061,10.4901,143.02,142.91,2.798]
[1642159715262,0.26,143.01,142.93,10.4901]
[1642159715462,0.26,143.02,142.93,10.7401]
[1642159715666,29.43630034,143.04,142.91,52.1754]
[1642159715864,10.07,143.03,142.91,52.1754]
[1642159716064,2.797,143.02,142.91,49.3774]
[1642159716264,72.637,143.02,142.89,12.30926655]
[1642159716467,2.797,143.02,142.91,3.51226655]
[1642159716666,10.4911,143.01,142.91,3.51226655]
[1642159716866,10.4911,143.01,142.91,3.77226655]
[1642159717066,10.4911,143.01,142.91,4.02226655]
[1642159717467,10.4911,143.01,142.91,0.51]
[1642159717665,10.4911,143.01,142.91,13.7991]
[1642159717890,2.797,143.02,142.91,93.1991]
[1642159718091,25.4348,143.04,142.91,99.7091]
[1642159718293,22.6378,143.04,142.91,99.7091]
[1642159718892,33.1265,143.04,142.91,29.8691]
[1642159719093,33.1265,143.04,142.94,29.41877684]
[1642159719292,2.797,143.03,142.94,29.41877684]
[1642159719493,2.797,143.05,142.94,54.62897684]
[1642159719896,4.49777588,143.05,142.94,54.37897684]
[1642159720098,4.49777588,143.05,142.94,54.62897684]
[1642159720294,4.74777588,143.05,142.94,54.62897684]
[1642159720495,10.489,143.04,142.94,64.85867684]
[1642159720802,2.797,143.03,142.94,54.36897684]
[1642159720995,39.46967588,143.04,142.94,24.9502]
[1642159721595,10.4914,143.0,142.94,24.7002]
[1642159721794,10.4914,143.0,142.92,29.29006655]
[1642159721995,10.4914,143.0,142.92,32.74306655]
[1642159722395,10.4914,143.0,142.92,29.2308]
[1642159722797,10.4914,143.0,142.92,23.2308]
[1642159722996,12.19217588,143.0,142.91,3.51226655]
[1642159723198,10.4946,142.96,142.91,3.51226655]
[1642159723398,2.798,142.99,142.91,3.51226655]
[1642159723598,2.798,143.01,142.91,3.51226655]
[1642159724000,4.49877588,143.01,142.91,3.51226655]
[1642159724198,10.4923,142.99,142.91,0.25]
[1642159724400,2.798,142.98,142.91,0.25]
[1642159724599,2.798,143.0,142.91,0.25]
[1642159724998,2.798,143.0,142.91,10.742]
[1642159725503,13.2895,143.0,142.91,10.742]
[1642159725701,13.2895,143.0,142.91,0.25]
[1642159726102,13.2895,143.0,142.89,34.95936655]
[1642159726302,10.4915,143.0,142.9,10.493]
[1642159726502,10.7415,143.0,142.9,11.003]
[1642159726701,10.7415,143.0,142.9,0.51]
[1642159726901,1.70077588,142.99,142.89,3.51226655]
[1642159727101,10.4984,142.94,142.9,3.51226655]
[1642159728103,10.7584,142.94,142.85,3.51226655]
[1642159728304,13.5574,142.94,142.85,3.51226655]
[1642159728503,13.5574,142.94,142.85,3.76226655]
[1642159728703,13.5574,142.94,142.85,4.02226655]
[1642159729007,13.5574,142.94,142.85,3.76226655]
[1642159729604,13.5574,142.94,142.85,3.51226655]
[1642159730204,1.70077588,142.93,142.85,3.51226655]
[1642159730409,2.799,142.92,142.85,3.51226655]
[1642159730607,10.4994,142.89,142.85,3.51226655]
[1642159730810,10.4994,142.89,142.84,3.51226655]
[1642159731008,2.799,142.88,142.84,3.51226655]
[1642159731208,1.70077588,142.88,142.84,3.51226655]
[1642159731412,2.799,142.87,142.84,6.655e-05]
[1642159731709,6.06324725,142.86,142.81,6.655e-05]
[1642159731909,16.56554725,142.86,142.81,6.655e-05]
[1642159732510,2.799,142.85,142.81,6.655e-05]
[1642159732913,2.799,142.86,142.75,2.799]
[1642159733112,10.5048,142.83,142.75,2.799]
[1642159733511,10.5048,142.83,142.75,3.049]
[1642159734213,10.7648,142.83,142.75,3.049]
[1642159734412,10.7648,142.83,142.75,2.799]
[1642159734814,13.5658,142.83,142.75,2.799]
[1642159735916,11.0148,142.83,142.75,2.799]
[1642159736720,11.0148,142.83,142.75,3.049]
[1642159736918,10.5065,142.8,142.74,24.12]
[1642159737118,10.5065,142.8,142.73,25.8462]
[1642159737320,10.5065,142.8,142.73,29.0452]
[1642159737924,10.7665,142.8,142.73,29.0452]
[1642159738321,10.7665,142.8,142.71,8.81597949]
[1642159738721,15.26927588,142.8,142.71,6.01497949]
[1642159738922,85.10927588,142.8,142.71,6.01497949]
[1642159739522,85.10927588,142.8,142.72,4.01075851]
[1642159739722,10.5117,142.76,142.72,4.01075851]
[1642159740122,12.21247588,142.76,142.72,4.01075851]
[1642159740336,12.21247588,142.76,142.69,4.01075851]
[1642159740522,2.802,142.75,142.69,4.01075851]
[1642159740923,72.642,142.75,142.69,4.01075851]
[1642159741222,10.5127,142.72,142.69,4.01075851]
[1642159741427,6.06324725,142.71,142.69,4.01075851]
[1642159741825,6.06324725,142.71,142.68,2.802]
[1642159742123,10.5141,142.7,142.68,2.802]
[1642159742322,2.803,142.69,142.64,6.01497949]
[1642159742524,4.50377588,142.69,142.64,6.01497949]
[1642159742723,1.70077588,142.68,142.64,6.01497949]
[1642159743124,2.803,142.69,142.62,6.01497949]
[1642159743526,10.517,142.67,142.62,6.01497949]
[1642159743927,10.07,142.72,142.62,36.60304017]
[1642159744159,10.07,142.72,142.63,2.803]
[1642159744757,2.803,142.71,142.63,2.803]
[1642159744958,10.5143,142.69,142.63,2.803]
[1642159745860,10.07,142.72,142.64,4.0137912]
[1642159746057,2.803,142.74,142.64,4.5237912]
[1642159746257,10.07,142.76,142.65,2.803]
[1642159746458,10.07,142.76,142.65,3.313]
[1642159747059,10.07,142.76,142.66,10.5111]
[1642159747257,48.6127,142.8,142.67,2.802]
[1642159747457,58.6827,142.8,142.68,26.75633247]
[1642159747957,58.6827,142.8,142.68,27.00633247]
[1642159748157,10.51,142.75,142.69,4.0137912]
[1642159748661,10.51,142.75,142.69,4.2637912]
[1642159749058,10.77,142.75,142.69,4.2637912]
[1642159749959,10.77,142.75,142.69,0.25]
[1642159750159,10.77,142.75,142.68,0.51]
[1642159750562,10.77,142.75,142.67,36.2327]
[1642159750963,10.77,142.75,142.67,2.802]
[1642159751564,10.77,142.75,142.65,8.81697949]